[Event "Titled Tuesday Blitz April 11 Late 2023"]
[White "Durarbayli, Vasif"]
[Black "Rios Escobar, Adan"]
[WhiteFideId "13402935"]
[BlackFideId "3403645"]
[WhiteElo "2551"]
[BlackElo "2234"]
[Result "1-0"]
[Round "01"]
[TimeControl "180+2"]
[Date "2023.04.11"]
[WhiteClock "0:00:08"]
[BlackClock "0:00:01"]

1. e4 {[%clk 0:03:00]}  c5 {[%clk 0:02:56]} 2. Nf3 {[%clk 0:03:00]}  d6 {[%clk 0:02:54]} 3. d4 {[%clk 0:03:01]}  cxd4 {[%clk 0:02:55]} 4. Nxd4 {[%clk 0:03:01]}  Nf6 {[%clk 0:02:55]} 5. Nc3 {[%clk 0:03:02]}  a6 {[%clk 0:02:56]} 6. Be2 {[%clk 0:03:02]}  e5 {[%clk 0:02:56]} 7. Nb3 {[%clk 0:03:02]}  Be6 {[%clk 0:02:57]} 8. O-O {[%clk 0:02:58]}  Nbd7 {[%clk 0:02:56]} 9. f4 {[%clk 0:02:57]}  Rc8 {[%clk 0:02:53]} 10. f5 {[%clk 0:02:55]}  Bc4 {[%clk 0:02:52]} 11. Bg5 {[%clk 0:02:55]}  Be7 {[%clk 0:02:51]} 12. Bxc4 {[%clk 0:02:44]}  Rxc4 {[%clk 0:02:50]} 13. Qd3 {[%clk 0:02:44]}  Rc6 {[%clk 0:02:11]} 14. Kh1 {[%clk 0:02:41]}  O-O {[%clk 0:02:10]} 15. Rad1 {[%clk 0:02:37]}  Qc7 {[%clk 0:02:08]} 16. Nd5 {[%clk 0:02:29]}  Nxd5 {[%clk 0:01:50]} 17. exd5 {[%clk 0:02:29]}  Nc5 {[%clk 0:01:49]} 18. Qf3 {[%clk 0:02:03]}  Rb6 {[%clk 0:01:11]} 19. f6 {[%clk 0:01:53]}  Bxf6 {[%clk 0:01:03]} 20. Bxf6 {[%clk 0:01:51]}  gxf6 {[%clk 0:01:04]} 21. Qxf6 {[%clk 0:01:47]}  Ne4 {[%clk 0:00:51]} 22. Qf5 {[%clk 0:01:39]}  Rb4 {[%clk 0:00:19]} 23. c3 {[%clk 0:01:20]}  Rc4 {[%clk 0:00:17]} 24. Rde1 {[%clk 0:00:52]}  Qc8 {[%clk 0:00:05]} 25. Qf3 {[%clk 0:00:19]}  f5 {[%clk 0:00:05]} 26. Re3 {[%clk 0:00:17]}  Kh8 {[%clk 0:00:05]} 27. Qh5 {[%clk 0:00:16]}  Qe8 {[%clk 0:00:03]} 28. Qxe8 {[%clk 0:00:15]}  Rxe8 {[%clk 0:00:04]} 29. Rxf5 {[%clk 0:00:15]}  Nc5 {[%clk 0:00:03]} 30. Nd2 {[%clk 0:00:12]}  Rg4 {[%clk 0:00:03]} 31. h3 {[%clk 0:00:11]}  Rg6 {[%clk 0:00:03]} 32. b4 {[%clk 0:00:11]}  Na4 {[%clk 0:00:02]} 33. Ne4 {[%clk 0:00:11]}  Nb2 {[%clk 0:00:01]} 34. Ref3 {[%clk 0:00:08]}  Reg8 {[%clk 0:00:01]} 35. Rf8 {[%clk 0:00:07]}  Nc4 {[%clk 0:00:02]} 36. Rxg8+ {[%clk 0:00:07]}  Kxg8 {[%clk 0:00:03]} 37. Rf6 {[%clk 0:00:07]}  Rxf6 {[%clk 0:00:03]} 38. Nxf6+ {[%clk 0:00:07]}  Kg7 {[%clk 0:00:03]} 39. Ne4 {[%clk 0:00:08]}  Kg6 {[%clk 0:00:03]} 40. g4 {[%clk 0:00:07]}  h5 {[%clk 0:00:03]} 41. Kg2 {[%clk 0:00:07]}  hxg4 {[%clk 0:00:03]} 42. hxg4 {[%clk 0:00:08]}  b5 {[%clk 0:00:03]} 43. Kf3 {[%clk 0:00:08]}  a5 {[%clk 0:00:03]} 44. bxa5 {[%clk 0:00:08]}  Nxa5 {[%clk 0:00:04]} 45. Nxd6 {[%clk 0:00:09]}  Kf6 {[%clk 0:00:03]} 46. Nxb5 {[%clk 0:00:09]}  Nc4 {[%clk 0:00:03]} 47. a4 {[%clk 0:00:08]}  Kg5 {[%clk 0:00:02]} 48. d6 {[%clk 0:00:08]}  Kf6 {[%clk 0:00:03]} 49. g5+ {[%clk 0:00:08]}  Ke6 {[%clk 0:00:03]} 50. g6 {[%clk 0:00:09]}  e4+ {[%clk 0:00:01]} 51. Kxe4 {[%clk 0:00:09]}  Kf6 {[%clk 0:00:01]} 52. d7 {[%clk 0:00:08]}  Ke7 {[%clk 0:00:01]} 53. g7 {[%clk 0:00:08]}  Nd6+ {[%clk 0:00:02]} 54. Nxd6 {[%clk 0:00:08]}  Kf6 {[%clk 0:00:01]} 55. d8=Q+ {[%clk 0:00:07]}  Ke6 {[%clk 0:00:02]} 56. Qe8+ {[%clk 0:00:07]}  Kf6 {[%clk 0:00:02]} 57. Qe5+ {[%clk 0:00:07]}  Kg6 {[%clk 0:00:01]} 58. g8=Q+ {[%clk 0:00:07]}  Kh6 {[%clk 0:00:01]} 59. Qeg5# {[%clk 0:00:08]} 1-0


[Site "https://www.chess.com"]

[Event "Titled Tuesday Blitz April 11 Late 2023"]
[White "Samsonkin, Artiom"]
[Black "Wu, Brandon"]
[WhiteFideId "13503111"]
[BlackFideId "30909228"]
[WhiteElo "2524"]
[BlackElo "2123"]
[Result "1-0"]
[Round "01"]
[TimeControl "180+2"]
[Date "2023.04.11"]
[WhiteClock "0:00:00"]
[BlackClock "0:00:00"]

1. e4 {[%clk 0:00:01]}  c6 {[%clk 0:00:01]} 2. d4 {[%clk 0:00:01]}  d5 {[%clk 0:00:01]} 3. exd5 {[%clk 0:00:01]}  cxd5 {[%clk 0:00:01]} 4. Bd3 {[%clk 0:00:01]}  Nc6 {[%clk 0:00:01]} 5. c3 {[%clk 0:00:01]}  Nf6 {[%clk 0:00:01]} 6. h3 {[%clk 0:00:01]}  g6 {[%clk 0:00:01]} 7. Nf3 {[%clk 0:00:01]}  Bg7 {[%clk 0:00:01]} 8. O-O {[%clk 0:00:01]}  O-O {[%clk 0:00:01]} 9. Bf4 {[%clk 0:00:01]}  Bf5 {[%clk 0:00:01]} 10. Be2 {[%clk 0:00:01]}  Ne4 {[%clk 0:00:01]} 11. Nbd2 {[%clk 0:00:01]}  Nxd2 {[%clk 0:00:01]} 12. Qxd2 {[%clk 0:00:01]}  Re8 {[%clk 0:00:01]} 13. Rfe1 {[%clk 0:00:01]}  f6 {[%clk 0:00:01]} 14. Rad1 {[%clk 0:00:01]}  Be4 {[%clk 0:00:01]} 15. Nh2 {[%clk 0:00:01]}  e5 {[%clk 0:00:00]} 16. dxe5 {[%clk 0:00:01]}  fxe5 {[%clk 0:00:00]} 17. Bg5 {[%clk 0:00:01]}  Qb6 {[%clk 0:00:00]} 18. Ng4 {[%clk 0:00:01]}  Rf8 {[%clk 0:00:00]} 19. Be3 {[%clk 0:00:00]}  d4 {[%clk 0:00:00]} 20. cxd4 {[%clk 0:00:00]}  exd4 {[%clk 0:00:00]} 21. Bc4+ {[%clk 0:00:00]}  Kh8 {[%clk 0:00:00]} 22. Bh6 {[%clk 0:00:00]}  Rae8 {[%clk 0:00:00]} 23. Bxg7+ {[%clk 0:00:00]}  Kxg7 {[%clk 0:00:00]} 24. Qh6+ {[%clk 0:00:00]}  Kh8 {[%clk 0:00:00]} 25. Rxe4 {[%clk 0:00:00]}  Na5 {[%clk 0:00:00]} 26. Rxe8 {[%clk 0:00:00]}  Rxe8 {[%clk 0:00:00]} 27. Bf7 {[%clk 0:00:00]}  Rc8 {[%clk 0:00:00]} 28. b3 {[%clk 0:00:00]}  Qc7 {[%clk 0:00:00]} 29. Be6 {[%clk 0:00:00]}  Re8 {[%clk 0:00:00]} 30. Nf6 {[%clk 0:00:00]}  Rd8 {[%clk 0:00:00]} 31. Rxd4 {[%clk 0:00:00]} 1-0


[Site "https://www.chess.com"]

[Event "Titled Tuesday Blitz April 11 Late 2023"]
[White "Bochnicka, Vladimir"]
[Black "Rustemov, Alexander"]
[WhiteFideId "14943450"]
[BlackFideId "4119002"]
[WhiteElo "2094"]
[BlackElo "2525"]
[Result "0-1"]
[Round "01"]
[TimeControl "180+2"]
[Date "2023.04.11"]
[WhiteClock "0:00:00"]
[BlackClock "0:00:00"]

1. e4 {[%clk 0:00:01]}  e6 {[%clk 0:00:01]} 2. d4 {[%clk 0:00:01]}  d5 {[%clk 0:00:01]} 3. exd5 {[%clk 0:00:01]}  exd5 {[%clk 0:00:01]} 4. c4 {[%clk 0:00:01]}  Bb4+ {[%clk 0:00:01]} 5. Nc3 {[%clk 0:00:01]}  Nf6 {[%clk 0:00:01]} 6. Bd3 {[%clk 0:00:01]}  O-O {[%clk 0:00:01]} 7. Ne2 {[%clk 0:00:01]}  dxc4 {[%clk 0:00:01]} 8. Bxc4 {[%clk 0:00:01]}  Nc6 {[%clk 0:00:01]} 9. O-O {[%clk 0:00:01]}  h6 {[%clk 0:00:01]} 10. h3 {[%clk 0:00:01]}  Bd6 {[%clk 0:00:01]} 11. Re1 {[%clk 0:00:01]}  a6 {[%clk 0:00:01]} 12. Bb3 {[%clk 0:00:01]}  Bf5 {[%clk 0:00:01]} 13. Be3 {[%clk 0:00:01]}  Qd7 {[%clk 0:00:01]} 14. Qd2 {[%clk 0:00:01]}  Rfe8 {[%clk 0:00:01]} 15. Rad1 {[%clk 0:00:01]}  Rad8 {[%clk 0:00:01]} 16. Bxh6 {[%clk 0:00:01]}  gxh6 {[%clk 0:00:01]} 17. Qxh6 {[%clk 0:00:01]}  Nh7 {[%clk 0:00:01]} 18. Nd5 {[%clk 0:00:00]}  Bf8 {[%clk 0:00:01]} 19. Qh4 {[%clk 0:00:00]}  Bg7 {[%clk 0:00:01]} 20. Ng3 {[%clk 0:00:00]}  Be6 {[%clk 0:00:01]} 21. Bc2 {[%clk 0:00:00]}  Qxd5 {[%clk 0:00:00]} 22. Qxh7+ {[%clk 0:00:00]}  Kf8 {[%clk 0:00:00]} 23. Nh5 {[%clk 0:00:00]}  Qg5 {[%clk 0:00:00]} 24. Re3 {[%clk 0:00:00]}  Qh6 {[%clk 0:00:00]} 25. Qxh6 {[%clk 0:00:00]}  Bxh6 {[%clk 0:00:00]} 26. Nf6 {[%clk 0:00:00]}  Bxe3 {[%clk 0:00:00]} 27. fxe3 {[%clk 0:00:00]}  Nb4 {[%clk 0:00:00]} 28. Be4 {[%clk 0:00:00]}  Re7 {[%clk 0:00:00]} 29. a3 {[%clk 0:00:00]}  Nd5 {[%clk 0:00:00]} 30. Ng4 {[%clk 0:00:00]}  Bxg4 {[%clk 0:00:00]} 0-1


[Site "https://www.chess.com"]

[Event "Titled Tuesday Blitz April 11 Late 2023"]
[White "Novik, Maxim"]
[Black "Hansen, Eric"]
[WhiteFideId "4102924"]
[BlackFideId "2606771"]
[WhiteElo "2287"]
[BlackElo "2561"]
[Result "0-1"]
[Round "01"]
[TimeControl "180+2"]
[Date "2023.04.11"]
[WhiteClock "0:00:00"]
[BlackClock "0:00:00"]

1. c4 {[%clk 0:00:01]}  e5 {[%clk 0:00:01]} 2. Nc3 {[%clk 0:00:01]}  Nc6 {[%clk 0:00:01]} 3. g3 {[%clk 0:00:01]}  Bb4 {[%clk 0:00:01]} 4. Bg2 {[%clk 0:00:01]}  Bxc3 {[%clk 0:00:01]} 5. bxc3 {[%clk 0:00:01]}  d6 {[%clk 0:00:01]} 6. Nf3 {[%clk 0:00:01]}  Nge7 {[%clk 0:00:01]} 7. O-O {[%clk 0:00:01]}  O-O {[%clk 0:00:01]} 8. Rb1 {[%clk 0:00:01]}  b6 {[%clk 0:00:01]} 9. d4 {[%clk 0:00:01]}  Bf5 {[%clk 0:00:01]} 10. Ra1 {[%clk 0:00:01]}  Be4 {[%clk 0:00:01]} 11. dxe5 {[%clk 0:00:01]}  dxe5 {[%clk 0:00:01]} 12. Ba3 {[%clk 0:00:01]}  Qe8 {[%clk 0:00:01]} 13. Bh3 {[%clk 0:00:00]}  Rd8 {[%clk 0:00:01]} 14. Qc1 {[%clk 0:00:00]}  f6 {[%clk 0:00:01]} 15. Nh4 {[%clk 0:00:00]}  Qf7 {[%clk 0:00:01]} 16. f3 {[%clk 0:00:00]}  Bg6 {[%clk 0:00:01]} 17. Nxg6 {[%clk 0:00:00]}  hxg6 {[%clk 0:00:01]} 18. c5 {[%clk 0:00:00]}  Qc4 {[%clk 0:00:01]} 19. cxb6 {[%clk 0:00:00]}  axb6 {[%clk 0:00:01]} 20. Qc2 {[%clk 0:00:00]}  Kh7 {[%clk 0:00:00]} 21. Rfe1 {[%clk 0:00:00]}  Rfe8 {[%clk 0:00:00]} 22. Qb3 {[%clk 0:00:00]}  Na5 {[%clk 0:00:00]} 23. Qb4 {[%clk 0:00:00]}  Nd5 {[%clk 0:00:00]} 24. Qxc4 {[%clk 0:00:00]}  Nxc4 {[%clk 0:00:00]} 25. Bc1 {[%clk 0:00:00]}  Nxc3 {[%clk 0:00:00]} 26. Bf1 {[%clk 0:00:00]}  Nd2 {[%clk 0:00:00]} 27. Bxd2 {[%clk 0:00:00]}  Rxd2 {[%clk 0:00:00]} 28. Rac1 {[%clk 0:00:00]}  Nb5 {[%clk 0:00:00]} 29. a4 {[%clk 0:00:00]}  Nd4 {[%clk 0:00:00]} 30. Rxc7 {[%clk 0:00:00]}  Ra8 {[%clk 0:00:00]} 31. Rb7 {[%clk 0:00:00]}  Rb2 {[%clk 0:00:00]} 32. Rc1 {[%clk 0:00:00]}  Nxe2+ {[%clk 0:00:00]} 33. Bxe2 {[%clk 0:00:00]}  Rxe2 {[%clk 0:00:00]} 34. Rcc7 {[%clk 0:00:00]}  Rxa4 {[%clk 0:00:00]} 35. Rxg7+ {[%clk 0:00:00]}  Kh6 {[%clk 0:00:00]} 36. Rh7+ {[%clk 0:00:00]}  Kg5 {[%clk 0:00:00]} 37. h4+ {[%clk 0:00:00]}  Kf5 {[%clk 0:00:00]} 38. Kf1 {[%clk 0:00:00]}  Rb2 {[%clk 0:00:00]} 39. g4+ {[%clk 0:00:00]}  Kf4 {[%clk 0:00:00]} 0-1


[Site "https://www.chess.com"]

[Event "Titled Tuesday Blitz April 11 Late 2023"]
[White "Holt, Conrad"]
[Black "Melikhov, Evgeny V."]
[WhiteFideId "2034387"]
[BlackFideId "4122046"]
[WhiteElo "2592"]
[BlackElo "2158"]
[Result "1-0"]
[Round "01"]
[TimeControl "180+2"]
[Date "2023.04.11"]
[WhiteClock "0:00:00"]
[BlackClock "0:00:00"]

1. d4 {[%clk 0:00:01]}  Nf6 {[%clk 0:00:01]} 2. c4 {[%clk 0:00:01]}  e6 {[%clk 0:00:01]} 3. Nc3 {[%clk 0:00:01]}  Bb4 {[%clk 0:00:01]} 4. Qc2 {[%clk 0:00:01]}  c5 {[%clk 0:00:01]} 5. dxc5 {[%clk 0:00:01]}  Na6 {[%clk 0:00:01]} 6. a3 {[%clk 0:00:01]}  Bxc3+ {[%clk 0:00:01]} 7. Qxc3 {[%clk 0:00:01]}  Nxc5 {[%clk 0:00:01]} 8. b4 {[%clk 0:00:01]}  Nce4 {[%clk 0:00:01]} 9. Qb2 {[%clk 0:00:01]}  d5 {[%clk 0:00:01]} 10. c5 {[%clk 0:00:01]}  h6 {[%clk 0:00:01]} 11. Bf4 {[%clk 0:00:01]}  O-O {[%clk 0:00:01]} 12. f3 {[%clk 0:00:01]}  Ng5 {[%clk 0:00:01]} 13. h4 {[%clk 0:00:01]}  Ngh7 {[%clk 0:00:01]} 14. g4 {[%clk 0:00:01]}  Nd7 {[%clk 0:00:01]} 15. Rd1 {[%clk 0:00:01]}  Re8 {[%clk 0:00:01]} 16. g5 {[%clk 0:00:01]}  e5 {[%clk 0:00:01]} 17. gxh6 {[%clk 0:00:01]}  d4 {[%clk 0:00:01]} 18. Bc1 {[%clk 0:00:01]}  Qf6 {[%clk 0:00:00]} 19. Nh3 {[%clk 0:00:01]}  Qxh4+ {[%clk 0:00:00]} 20. Nf2 {[%clk 0:00:01]}  Qg3 {[%clk 0:00:00]} 21. hxg7 {[%clk 0:00:01]}  Ndf6 {[%clk 0:00:00]} 22. Rd3 {[%clk 0:00:01]}  Bf5 {[%clk 0:00:00]} 23. e4 {[%clk 0:00:01]}  dxe3 {[%clk 0:00:00]} 24. Rxe3 {[%clk 0:00:01]}  Rad8 {[%clk 0:00:00]} 25. Be2 {[%clk 0:00:00]}  Nd5 {[%clk 0:00:00]} 26. Kf1 {[%clk 0:00:00]}  Nxe3+ {[%clk 0:00:00]} 27. Bxe3 {[%clk 0:00:00]}  Nf6 {[%clk 0:00:00]} 28. Rg1 {[%clk 0:00:00]}  Qh4 {[%clk 0:00:00]} 29. Bg5 {[%clk 0:00:00]}  Qd4 {[%clk 0:00:00]} 30. Qxd4 {[%clk 0:00:00]}  exd4 {[%clk 0:00:00]} 31. Bxf6 {[%clk 0:00:00]}  d3 {[%clk 0:00:00]} 32. Bd1 {[%clk 0:00:00]}  d2 {[%clk 0:00:00]} 33. Kg2 {[%clk 0:00:00]}  Rd5 {[%clk 0:00:00]} 34. Rh1 {[%clk 0:00:00]}  Bh7 {[%clk 0:00:00]} 35. Bc2 {[%clk 0:00:00]} 1-0


[Site "https://www.chess.com"]

[Event "Titled Tuesday Blitz April 11 Late 2023"]
[White "Minko, Dmitry"]
[Black "Mendonca, Leon Luke"]
[WhiteFideId "24188468"]
[BlackFideId "35028561"]
[WhiteElo "2147"]
[BlackElo "2464"]
[Result "0-1"]
[Round "01"]
[TimeControl "180+2"]
[Date "2023.04.11"]
[WhiteClock "0:00:00"]
[BlackClock "0:00:00"]

1. e4 {[%clk 0:00:01]}  c5 {[%clk 0:00:01]} 2. Nf3 {[%clk 0:00:01]}  e6 {[%clk 0:00:01]} 3. d4 {[%clk 0:00:01]}  cxd4 {[%clk 0:00:01]} 4. Nxd4 {[%clk 0:00:01]}  a6 {[%clk 0:00:01]} 5. Bd3 {[%clk 0:00:01]}  d6 {[%clk 0:00:01]} 6. c4 {[%clk 0:00:01]}  Nf6 {[%clk 0:00:01]} 7. Nc3 {[%clk 0:00:01]}  Be7 {[%clk 0:00:01]} 8. Be3 {[%clk 0:00:01]}  O-O {[%clk 0:00:01]} 9. O-O {[%clk 0:00:01]}  Nc6 {[%clk 0:00:01]} 10. f3 {[%clk 0:00:01]}  Ne5 {[%clk 0:00:01]} 11. Be2 {[%clk 0:00:01]}  d5 {[%clk 0:00:01]} 12. cxd5 {[%clk 0:00:00]}  exd5 {[%clk 0:00:01]} 13. exd5 {[%clk 0:00:00]}  Re8 {[%clk 0:00:01]} 14. Qd2 {[%clk 0:00:00]}  Bb4 {[%clk 0:00:01]} 15. Nc2 {[%clk 0:00:00]}  Bxc3 {[%clk 0:00:01]} 16. bxc3 {[%clk 0:00:00]}  Qxd5 {[%clk 0:00:01]} 17. Rfd1 {[%clk 0:00:00]}  Qxd2 {[%clk 0:00:01]} 18. Rxd2 {[%clk 0:00:00]}  Bf5 {[%clk 0:00:01]} 19. Nd4 {[%clk 0:00:00]}  Bg6 {[%clk 0:00:01]} 20. Kf2 {[%clk 0:00:00]}  Rac8 {[%clk 0:00:00]} 21. Rc1 {[%clk 0:00:00]}  Rc7 {[%clk 0:00:00]} 22. Bf4 {[%clk 0:00:00]}  Rce7 {[%clk 0:00:00]} 23. Bf1 {[%clk 0:00:00]}  Nd5 {[%clk 0:00:00]} 24. Bg3 {[%clk 0:00:00]}  Ne3 {[%clk 0:00:00]} 25. c4 {[%clk 0:00:00]}  Nxf1 {[%clk 0:00:00]} 26. Kxf1 {[%clk 0:00:00]}  Nd3 {[%clk 0:00:00]} 27. Rcd1 {[%clk 0:00:00]}  Ne5 {[%clk 0:00:00]} 28. Rc1 {[%clk 0:00:00]}  f6 {[%clk 0:00:00]} 29. Nb3 {[%clk 0:00:00]}  h5 {[%clk 0:00:00]} 30. c5 {[%clk 0:00:00]}  Nc6 {[%clk 0:00:00]} 31. Bd6 {[%clk 0:00:00]}  Re6 {[%clk 0:00:00]} 32. Nd4 {[%clk 0:00:00]}  Nxd4 {[%clk 0:00:00]} 33. Rxd4 {[%clk 0:00:00]}  Re2 {[%clk 0:00:00]} 34. Rb4 {[%clk 0:00:00]}  Bd3 {[%clk 0:00:00]} 35. Kg1 {[%clk 0:00:00]}  Bb5 {[%clk 0:00:00]} 36. a4 {[%clk 0:00:00]}  Bc6 {[%clk 0:00:00]} 37. a5 {[%clk 0:00:00]}  Ra2 {[%clk 0:00:00]} 38. Rcb1 {[%clk 0:00:00]}  Ree2 {[%clk 0:00:00]} 39. Rxb7 {[%clk 0:00:00]}  Rxg2+ {[%clk 0:00:00]} 40. Kh1 {[%clk 0:00:00]}  Bxb7 {[%clk 0:00:00]} 41. Rxb7 {[%clk 0:00:00]}  Rgc2 {[%clk 0:00:00]} 42. Rb8+ {[%clk 0:00:00]}  Kf7 {[%clk 0:00:00]} 43. Rb1 {[%clk 0:00:00]}  Rxa5 {[%clk 0:00:00]} 44. Kg1 {[%clk 0:00:00]}  Rb5 {[%clk 0:00:00]} 45. Re1 {[%clk 0:00:00]}  a5 {[%clk 0:00:00]} 46. Ra1 {[%clk 0:00:00]}  a4 {[%clk 0:00:00]} 0-1


[Site "https://www.chess.com"]

[Event "Titled Tuesday Blitz April 11 Late 2023"]
[White "Mekhitarian, Krikor Sevag"]
[Black "Mazurkiewicz, Michal"]
[WhiteFideId "2107660"]
[BlackFideId "1124943"]
[WhiteElo "2604"]
[BlackElo "2054"]
[Result "1-0"]
[Round "01"]
[TimeControl "180+2"]
[Date "2023.04.11"]
[WhiteClock "0:00:00"]
[BlackClock "0:00:00"]

1. Nf3 {[%clk 0:00:01]}  Nf6 {[%clk 0:00:01]} 2. c4 {[%clk 0:00:01]}  g6 {[%clk 0:00:01]} 3. Nc3 {[%clk 0:00:01]}  Bg7 {[%clk 0:00:01]} 4. e4 {[%clk 0:00:01]}  d6 {[%clk 0:00:01]} 5. d4 {[%clk 0:00:01]}  O-O {[%clk 0:00:01]} 6. h3 {[%clk 0:00:01]}  c5 {[%clk 0:00:01]} 7. d5 {[%clk 0:00:01]}  e6 {[%clk 0:00:01]} 8. Bd3 {[%clk 0:00:01]}  exd5 {[%clk 0:00:01]} 9. exd5 {[%clk 0:00:01]}  Re8+ {[%clk 0:00:01]} 10. Be3 {[%clk 0:00:01]}  Nbd7 {[%clk 0:00:01]} 11. O-O {[%clk 0:00:01]}  Ne5 {[%clk 0:00:01]} 12. Nxe5 {[%clk 0:00:01]}  Rxe5 {[%clk 0:00:01]} 13. Bf4 {[%clk 0:00:01]}  Re8 {[%clk 0:00:01]} 14. Bh2 {[%clk 0:00:01]}  a6 {[%clk 0:00:01]} 15. Re1 {[%clk 0:00:01]}  Rxe1+ {[%clk 0:00:01]} 16. Qxe1 {[%clk 0:00:01]}  Ne8 {[%clk 0:00:01]} 17. Qe2 {[%clk 0:00:01]}  Bd7 {[%clk 0:00:01]} 18. Re1 {[%clk 0:00:01]}  Kf8 {[%clk 0:00:00]} 19. a4 {[%clk 0:00:01]}  Bxc3 {[%clk 0:00:00]} 20. bxc3 {[%clk 0:00:01]}  Bxa4 {[%clk 0:00:00]} 21. Qe3 {[%clk 0:00:01]}  Qf6 {[%clk 0:00:00]} 22. Bf4 {[%clk 0:00:01]}  Bd7 {[%clk 0:00:00]} 23. Bg5 {[%clk 0:00:01]}  Qxc3 {[%clk 0:00:00]} 24. Qe7+ {[%clk 0:00:00]}  Kg8 {[%clk 0:00:00]} 25. Re3 {[%clk 0:00:00]}  Ba4 {[%clk 0:00:00]} 26. Bxg6 {[%clk 0:00:00]}  Qa1+ {[%clk 0:00:00]} 27. Re1 {[%clk 0:00:00]}  Qg7 {[%clk 0:00:00]} 28. Bf5 {[%clk 0:00:00]}  f6 {[%clk 0:00:00]} 29. Bf4 {[%clk 0:00:00]}  Qxe7 {[%clk 0:00:00]} 30. Rxe7 {[%clk 0:00:00]}  Bb3 {[%clk 0:00:00]} 31. Be6+ {[%clk 0:00:00]}  Kh8 {[%clk 0:00:00]} 32. Bh6 {[%clk 0:00:00]}  Bxc4 {[%clk 0:00:00]} 33. Rf7 {[%clk 0:00:00]} 1-0


[Site "https://www.chess.com"]

[Event "Titled Tuesday Blitz April 11 Late 2023"]
[White "Mammadov, Zaur"]
[Black "Medeiros Jr, Francisco De Assis"]
[WhiteFideId "13401033"]
[BlackFideId "2114267"]
[WhiteElo "2441"]
[BlackElo "2022"]
[Result "1-0"]
[Round "01"]
[TimeControl "180+2"]
[Date "2023.04.11"]
[WhiteClock "0:00:01"]
[BlackClock "0:00:00"]

1. e4 {[%clk 0:00:01]}  c6 {[%clk 0:00:01]} 2. c4 {[%clk 0:00:01]}  d5 {[%clk 0:00:01]} 3. cxd5 {[%clk 0:00:01]}  cxd5 {[%clk 0:00:01]} 4. exd5 {[%clk 0:00:01]}  Nf6 {[%clk 0:00:01]} 5. Nc3 {[%clk 0:00:01]}  Nxd5 {[%clk 0:00:01]} 6. Nf3 {[%clk 0:00:01]}  Nc6 {[%clk 0:00:01]} 7. Bb5 {[%clk 0:00:01]}  e6 {[%clk 0:00:01]} 8. d4 {[%clk 0:00:01]}  Bb4 {[%clk 0:00:01]} 9. O-O {[%clk 0:00:01]}  O-O {[%clk 0:00:01]} 10. Bd3 {[%clk 0:00:01]}  Be7 {[%clk 0:00:01]} 11. a3 {[%clk 0:00:01]}  a6 {[%clk 0:00:01]} 12. Re1 {[%clk 0:00:01]}  Bf6 {[%clk 0:00:01]} 13. Be4 {[%clk 0:00:01]}  Nce7 {[%clk 0:00:01]} 14. Ne5 {[%clk 0:00:01]}  Bd7 {[%clk 0:00:01]} 15. Qh5 {[%clk 0:00:01]}  Ng6 {[%clk 0:00:01]} 16. Bd2 {[%clk 0:00:01]}  Bc6 {[%clk 0:00:01]} 17. Rad1 {[%clk 0:00:01]}  Rc8 {[%clk 0:00:01]} 18. g3 {[%clk 0:00:01]}  Qd6 {[%clk 0:00:01]} 19. Nxd5 {[%clk 0:00:01]}  Bxd5 {[%clk 0:00:01]} 20. Bb4 {[%clk 0:00:01]}  Qb6 {[%clk 0:00:00]} 21. Nd7 {[%clk 0:00:01]}  Qb5 {[%clk 0:00:00]} 22. Nxf6+ {[%clk 0:00:01]}  gxf6 {[%clk 0:00:00]} 23. Bxd5 {[%clk 0:00:01]}  exd5 {[%clk 0:00:00]} 24. Bxf8 {[%clk 0:00:01]}  Rxf8 {[%clk 0:00:00]} 25. b4 {[%clk 0:00:01]}  Qa4 {[%clk 0:00:00]} 26. Rd3 {[%clk 0:00:01]}  Qc2 {[%clk 0:00:00]} 27. Rde3 {[%clk 0:00:01]}  f5 {[%clk 0:00:00]} 28. h4 {[%clk 0:00:01]}  f4 {[%clk 0:00:00]} 29. gxf4 {[%clk 0:00:01]}  Qd2 {[%clk 0:00:00]} 30. f5 {[%clk 0:00:01]} 1-0


[Site "https://www.chess.com"]

[Event "Titled Tuesday Blitz April 11 Late 2023"]
[White "Goncalves, Davi Sulzbacher"]
[Black "Szpar, Milosz"]
[WhiteFideId "2154510"]
[BlackFideId "1184989"]
[WhiteElo "2182"]
[BlackElo "2436"]
[Result "0-1"]
[Round "01"]
[TimeControl "180+2"]
[Date "2023.04.11"]
[WhiteClock "0:00:00"]
[BlackClock "0:00:00"]

1. d4 {[%clk 0:00:01]}  Nf6 {[%clk 0:00:01]} 2. c4 {[%clk 0:00:01]}  c5 {[%clk 0:00:01]} 3. d5 {[%clk 0:00:01]}  e6 {[%clk 0:00:01]} 4. Nc3 {[%clk 0:00:01]}  exd5 {[%clk 0:00:01]} 5. cxd5 {[%clk 0:00:01]}  d6 {[%clk 0:00:01]} 6. g3 {[%clk 0:00:01]}  g6 {[%clk 0:00:01]} 7. Bg2 {[%clk 0:00:01]}  Bg7 {[%clk 0:00:01]} 8. Nf3 {[%clk 0:00:01]}  O-O {[%clk 0:00:01]} 9. O-O {[%clk 0:00:01]}  Re8 {[%clk 0:00:01]} 10. Bf4 {[%clk 0:00:01]}  h6 {[%clk 0:00:01]} 11. Re1 {[%clk 0:00:01]}  g5 {[%clk 0:00:01]} 12. Bc1 {[%clk 0:00:01]}  Bf5 {[%clk 0:00:01]} 13. Nd2 {[%clk 0:00:01]}  Nbd7 {[%clk 0:00:01]} 14. a4 {[%clk 0:00:01]}  Ne5 {[%clk 0:00:01]} 15. a5 {[%clk 0:00:01]}  Qd7 {[%clk 0:00:01]} 16. b3 {[%clk 0:00:01]}  Re7 {[%clk 0:00:01]} 17. Bb2 {[%clk 0:00:01]}  Rae8 {[%clk 0:00:01]} 18. Na4 {[%clk 0:00:01]}  Nd3 {[%clk 0:00:01]} 19. exd3 {[%clk 0:00:00]}  Rxe1+ {[%clk 0:00:01]} 20. Qxe1 {[%clk 0:00:00]}  Rxe1+ {[%clk 0:00:01]} 21. Rxe1 {[%clk 0:00:00]}  Bxd3 {[%clk 0:00:01]} 22. h3 {[%clk 0:00:00]}  Bf5 {[%clk 0:00:01]} 23. Kh2 {[%clk 0:00:00]}  g4 {[%clk 0:00:01]} 24. h4 {[%clk 0:00:00]}  Qc7 {[%clk 0:00:01]} 25. Nc4 {[%clk 0:00:00]}  Bd7 {[%clk 0:00:01]} 26. Nc3 {[%clk 0:00:00]}  b5 {[%clk 0:00:01]} 27. axb6 {[%clk 0:00:00]}  axb6 {[%clk 0:00:01]} 28. Ne3 {[%clk 0:00:00]}  b5 {[%clk 0:00:01]} 29. Ne2 {[%clk 0:00:00]}  Qa5 {[%clk 0:00:01]} 30. Ra1 {[%clk 0:00:00]}  Qd2 {[%clk 0:00:01]} 31. Ra8+ {[%clk 0:00:00]}  Kh7 {[%clk 0:00:01]} 32. Bxf6 {[%clk 0:00:00]}  Bxf6 {[%clk 0:00:01]} 33. Be4+ {[%clk 0:00:00]}  Kg7 {[%clk 0:00:01]} 34. Nf4 {[%clk 0:00:00]}  Qxf2+ {[%clk 0:00:00]} 35. Neg2 {[%clk 0:00:00]}  h5 {[%clk 0:00:00]} 36. Nxh5+ {[%clk 0:00:00]}  Kh6 {[%clk 0:00:00]} 37. Rf8 {[%clk 0:00:00]}  Bd4 {[%clk 0:00:00]} 0-1


[Site "https://www.chess.com"]